bitfinex-derivatives/quotes_BTCF0:USTF0_20210102
["timestamp","ask_amount","ask_price","bid_price","bid_amount"]
[1609597900661,10.83624799,31109.0,31108.0,0.03691484]
[1609597901059,10.83624799,31109.0,31104.0,0.03727428]
[1609597901259,10.83624799,31109.0,31108.0,0.03727752]
[1609597901460,10.95550799,31109.0,31108.0,0.03727752]
[1609597901660,0.03,31105.0,31103.0,8.99999006]
[1609597902059,0.03,31105.0,31104.0,0.03728488]
[1609597903363,0.21043158,31105.0,31104.0,0.03728488]
[1609597903561,1.04667957,31105.0,31104.0,0.03728488]
[1609597903966,0.86624799,31105.0,31104.0,0.03728488]
[1609597904462,0.03,31105.0,31104.0,0.03728488]
[1609597905464,0.03,31105.0,31104.0,0.21771646]
[1609597906865,0.03,31105.0,31104.0,0.2177085]
[1609597907168,0.83624799,31108.0,31104.0,0.2177085]
[1609597907665,0.83624799,31108.0,31105.0,0.03727303]
[1609597908471,0.64045877,31108.0,31105.0,0.03727303]
[1609597908672,0.64045877,31108.0,31104.0,6.60372234]
[1609597908867,10.11926,31109.0,31104.0,6.60372234]
[1609597909069,10.11730206,31109.0,31107.0,6.42381844]
[1609597909469,10.11730206,31109.0,31108.0,0.21770421]
[1609597909668,10.11730206,31109.0,31108.0,0.91560421]
[1609597911671,10.11730206,31109.0,31108.0,3.05985802]
[1609597912669,9.82365953,31109.0,31108.0,7.93195733]
[1609597912869,9.82365953,31109.0,31108.0,7.92195733]
[1609597917282,9.62792986,31109.0,31108.0,10.64752895]
[1609597917681,9.62792986,31109.0,31108.0,9.94962895]
[1609597917881,9.33433321,31109.0,31108.0,9.94962895]
[1609597918582,9.33433321,31109.0,31108.0,7.22405733]
[1609597920482,9.33433321,31109.0,31108.0,9.16894676]
[1609597922586,9.33237592,31109.0,31108.0,9.23897018]
[1609597923486,7.32967592,31109.0,31108.0,9.23897018]
[1609597923690,6.93823377,31109.0,31108.0,11.96097105]
[1609597923886,6.93823377,31109.0,31108.0,16.28457105]
[1609597924686,6.64468118,31109.0,31108.0,13.56257018]
[1609597926588,6.44898326,31109.0,31108.0,13.56257018]
[1609597926788,6.44898326,31109.0,31108.0,9.23897018]
[1609597927287,6.32972326,31109.0,31108.0,9.23897018]
[1609597928291,5.93833917,31109.0,31108.0,12.34859336]
[1609597929692,5.64143917,31109.0,31108.0,17.54909336]
[1609597929893,5.3479383,31109.0,31108.0,14.59993018]
[1609597931291,4.76105104,31109.0,31108.0,14.59993018]
[1609597932998,4.36982256,31109.0,31108.0,14.59993018]
[1609597934098,4.36982256,31109.0,31108.0,12.65504075]
[1609597934901,3.89282256,31109.0,31108.0,12.65504075]
[1609597935099,3.306044,31109.0,31108.0,14.59384174]
[1609597935500,3.01265792,31109.0,31108.0,12.65504075]
[1609597935900,2.89405792,31109.0,31108.0,13.65504075]
[1609597936300,2.69847981,31109.0,31108.0,15.59072963]
[1609597936802,2.69847981,31109.0,31108.0,14.59072963]
[1609597937000,2.30730104,31109.0,31108.0,14.59072963]
[1609597937601,2.30730104,31109.0,31108.0,15.94108098]
[1609597937801,2.30730104,31109.0,31108.0,16.94108098]
[1609597938902,2.04220104,31109.0,31108.0,16.94108098]
[1609597939304,2.13980104,31109.0,31108.0,15.94108098]
[1609597939505,2.04220104,31109.0,31108.0,15.94108098]
[1609597939705,1.45545917,31109.0,31108.0,12.65504075]
[1609597941007,1.16207294,31109.0,31108.0,12.65504075]
[1609597941508,1.16207294,31109.0,31108.0,12.58501733]
[1609597941808,0.77083888,31109.0,31108.0,10.44076352]
[1609597943009,0.77083888,31109.0,31108.0,13.1424874]
[1609597943510,0.77083888,31109.0,31108.0,14.1424874]
[1609597943911,0.77083888,31109.0,31108.0,14.21245807]
[1609597944312,0.77083888,31109.0,31108.0,13.63321663]
[1609597944511,0.77083888,31109.0,31108.0,12.63321663]
[1609597944711,1.0,31157.0,31108.0,12.63321663]
[1609597945113,1.0,31157.0,31109.0,0.10718506]
[1609597945311,1.0,31157.0,31109.0,1.10718506]
[1609597945513,0.2913,31158.0,31156.0,0.18043158]
[1609597945719,1.0,31157.0,31156.0,0.18043158]
[1609597946814,0.2913,31158.0,31156.0,0.18043158]
[1609597948318,1.0,31157.0,31156.0,0.18043158]
[1609597950322,1.0,31157.0,31156.0,0.69633158]
[1609597950723,1.0,31160.0,31156.0,0.1807769]
[1609597950918,1.0,31160.0,31157.0,0.00034532]
[1609597951720,0.13334,31161.0,31157.0,0.00034532]
[1609597951918,1.13334,31161.0,31157.0,0.00034532]
[1609597952119,1.0,31161.0,31157.0,0.00034532]
[1609597952519,1.0,31161.0,31156.0,5.26223158]
[1609597952921,0.2834,31164.0,31156.0,5.26223158]
[1609597953522,0.2834,31164.0,31163.0,0.18043158]
[1609597954122,1.2834,31164.0,31163.0,0.18043158]
[1609597955121,0.2834,31164.0,31163.0,0.18043158]
[1609597955922,0.14529,31165.0,31163.0,0.18043158]
[1609597956122,0.14529,31165.0,31163.0,0.18077681]
[1609597956323,0.14529,31165.0,31164.0,0.00034523]
[1609597956524,0.14529,31165.0,31164.0,4.30264523]
[1609597957924,0.0095136,31179.0,31164.0,4.30264523]
[1609597958424,0.0095136,31179.0,31165.0,0.0003451]
[1609597958926,0.2969,31186.0,31165.0,0.0003451]
[1609597959626,0.2969,31186.0,31185.0,0.18043158]
[1609597960126,0.2741,31191.0,31185.0,0.18043158]
[1609597960927,1.2741,31191.0,31185.0,0.18043158]
[1609597961728,0.27214632,31191.0,31190.0,0.18043158]
[1609597962228,1.27214632,31191.0,31190.0,0.18043158]
[1609597966733,1.42818632,31191.0,31190.0,0.18043158]
[1609597966935,1.42818632,31191.0,31184.0,4.4286]
[1609597967633,1.40818632,31191.0,31190.0,0.18043158]
[1609597968333,0.40818632,31191.0,31190.0,0.18043158]
[1609597968838,1.40818632,31191.0,31190.0,0.18043158]
[1609597970535,0.40818632,31191.0,31190.0,0.18043158]
[1609597970735,1.40818632,31191.0,31190.0,0.18043158]
[1609597970937,1.40818632,31191.0,31190.0,0.21043158]
[1609597971838,1.40818632,31191.0,31190.0,0.03]
[1609597973041,1.40857815,31191.0,31190.0,0.03]
[1609597974342,1.39327815,31191.0,31190.0,0.03]
[1609597977748,1.39132442,31191.0,31190.0,0.03]
[1609597978447,1.38662442,31191.0,31190.0,0.03]
[1609597980251,2.38662442,31191.0,31190.0,0.03]
[1609597982254,1.38662442,31191.0,31190.0,0.03]
[1609597982553,1.38662442,31191.0,31190.0,0.03034529]
[1609597983753,1.38662442,31191.0,31190.0,0.21077687]
[1609597986558,1.38623259,31191.0,31190.0,0.21077687]
[1609597987059,0.38623259,31191.0,31190.0,0.21077687]
[1609597988462,0.15604,31191.0,31190.0,0.21077687]
[1609597988662,1.0,31202.0,31190.0,0.21077687]
[1609597988862,0.15217,31197.0,31190.0,0.21077687]
[1609597989062,1.0,31196.0,31190.0,0.21077687]
[1609597989262,1.0,31196.0,31191.0,0.00034514]
[1609597989663,0.9980471,31196.0,31191.0,0.00034514]
[1609597989864,0.9980471,31196.0,31195.0,0.18043158]
[1609597990065,0.15217,31197.0,31196.0,0.6688]
[1609597990264,0.15217,31197.0,31196.0,0.66914512]
[1609597990465,0.9980471,31202.0,31196.0,0.66914512]
[1609597991166,0.9980471,31202.0,31197.0,0.00034512]
[1609597991363,1.2709471,31203.0,31197.0,0.00034512]
[1609597991764,0.9980471,31203.0,31202.0,0.18043158]
[1609597992164,0.9980471,31203.0,31202.0,0.1807767]
[1609597992363,0.18043158,31211.0,31202.0,0.1807767]
[1609597992865,0.18043158,31211.0,31203.0,0.0003451]
[1609597993565,0.9980471,31219.0,31203.0,0.0003451]
[1609597993765,0.9980471,31219.0,31218.0,0.18043158]
[1609597994167,0.99843865,31219.0,31218.0,0.18043158]
[1609597995071,0.00039155,31219.0,31218.0,0.18043158]
[1609597995768,0.18043158,31219.0,31218.0,0.18043158]
[1609597995969,1.17847868,31219.0,31218.0,0.18043158]
[1609597997073,0.18043158,31219.0,31218.0,0.18043158]
[1609597997973,1.17847868,31219.0,31218.0,0.18043158]
[1609597999374,1.29486868,31219.0,31218.0,0.18043158]
[1609598003083,1.29486868,31219.0,31201.0,4.8156]
[1609598003483,1.29486868,31219.0,31202.0,0.00034499]
[1609598003884,1.1144371,31219.0,31206.0,0.18043158]
[1609598004187,1.0,31218.0,31206.0,0.18043158]
[1609598004385,0.9980471,31217.0,31206.0,0.18043158]
[1609598005888,0.9980471,31217.0,31212.0,0.18043158]
[1609598006487,0.9980471,31216.0,31212.0,0.18043158]
[1609598007187,0.9980471,31216.0,31213.0,0.00034497]
[1609598007388,0.9980471,31218.0,31213.0,0.00034497]
[1609598007989,0.9980471,31218.0,31217.0,0.18043158]
[1609598008792,0.9980471,31218.0,31217.0,0.18077655]
[1609598010899,0.99609542,31218.0,31217.0,0.18077655]
[1609598015106,1.11248542,31219.0,31217.0,0.18077655]
[1609598015706,1.11248542,31219.0,31218.0,0.00034491]
[1609598016108,0.11639,31219.0,31218.0,0.00034491]
[1609598016508,0.291,31220.0,31218.0,0.00034491]
[1609598016710,1.09196304,31220.0,31218.0,0.00034491]
[1609598019715,0.79925883,31220.0,31218.0,1.90978556]
[1609598019912,0.79925883,31219.0,31218.0,1.90978556]
[1609598020213,0.79925883,31219.0,31218.0,1.90944065]
[1609598020413,0.79925883,31219.0,31218.0,1.9097901]
[1609598020614,0.79925883,31219.0,31218.0,0.00034945]
[1609598020914,0.79925883,31225.0,31218.0,0.00034945]
[1609598022115,0.79925883,31225.0,31224.0,0.18043158]
[1609598022517,0.79925883,31225.0,31224.0,0.18078103]
[1609598024121,0.97969041,31225.0,31224.0,0.18078103]
[1609598025326,0.97969041,31225.0,31224.0,0.1807809]
[1609598025724,0.97969041,31225.0,31224.0,0.1607809]
[1609598027229,0.97969041,31225.0,31224.0,0.1507809]
[1609598027829,0.97969041,31225.0,31224.0,0.00034932]
[1609598028531,0.97969041,31225.0,31221.0,0.00034937]
[1609598028732,0.78457387,31225.0,31224.0,0.00034937]
[1609598028934,0.78457387,31225.0,31222.0,0.00034937]
[1609598029132,0.01,31224.0,31222.0,0.00034937]
[1609598029333,0.00804886,31224.0,31220.0,4.79743158]
[1609598029533,0.00804886,31224.0,31223.0,0.00034936]
[1609598029734,0.00804886,31224.0,31221.0,0.00034939]
[1609598030137,0.00804886,31224.0,31223.0,0.00034939]
[1609598030336,0.00804886,31224.0,31221.0,0.00034941]
[1609598030536,0.00804886,31224.0,31223.0,0.00034941]
[1609598030936,0.00804886,31224.0,31222.0,0.00034944]
[1609598031137,0.00844025,31224.0,31223.0,0.00034944]
[1609598031337,0.00804886,31224.0,31223.0,0.00034944]
[1609598031737,0.00844029,31224.0,31215.0,0.00034949]
[1609598031937,0.00039143,31223.0,31215.0,0.00034949]
[1609598032139,0.18043158,31216.0,31215.0,0.00034949]
[1609598032338,1.78457387,31216.0,31212.0,1.92126648]
[1609598032739,1.78457387,31216.0,31213.0,0.00034949]
[1609598033240,0.00039148,31215.0,31213.0,0.00034949]
[1609598033641,0.00039148,31215.0,31205.0,1.91956299]
[1609598033941,0.00039148,31215.0,31206.0,0.00034956]
[1609598034142,0.18043158,31207.0,31206.0,0.00034956]
[1609598034344,0.78457387,31207.0,31206.0,0.00034956]
[1609598034543,0.95547387,31207.0,31206.0,0.00034956]
[1609598034743,0.95547387,31207.0,31198.0,0.00034956]
[1609598035744,0.95547387,31207.0,31197.0,0.00034956]
[1609598035945,0.95547387,31207.0,31199.0,0.00034956]
[1609598036145,0.18043158,31200.0,31199.0,0.00034956]
[1609598036345,0.78457387,31200.0,31198.0,0.00034958]
[1609598036545,0.78457387,31200.0,31199.0,0.00034958]
[1609598037145,0.78457387,31200.0,31197.0,0.00034958]
[1609598037347,0.60414229,31200.0,31199.0,0.00034958]
[1609598037547,0.60414229,31200.0,31198.0,0.00034958]
[1609598037849,0.60414229,31200.0,31199.0,0.00034956]
[1609598038248,0.60414229,31200.0,31199.0,0.18078114]
[1609598038449,0.40892784,31200.0,31199.0,0.18043158]
[1609598038649,0.40892784,31200.0,31199.0,0.18078114]
[1609598038849,0.40892784,31200.0,31199.0,0.21978257]
[1609598039952,0.40892784,31203.0,31199.0,0.21978257]
[1609598040455,0.40892784,31203.0,31200.0,0.03935248]
[1609598041857,0.40892784,31203.0,31202.0,4.05138205]
[1609598042356,0.40892784,31203.0,31202.0,4.09073346]
[1609598043360,0.1161231,31203.0,31202.0,4.09073346]
[1609598043859,0.11417107,31203.0,31202.0,4.09073346]
[1609598046962,0.099401,31204.0,31202.0,8.92532967]
[1609598047362,0.099401,31204.0,31203.0,0.03935081]
[1609598048163,1.0,31206.0,31203.0,0.03935081]
[1609598048365,1.0,31206.0,31205.0,0.18043158]
[1609598048766,1.0,31206.0,31205.0,0.2197809]
[1609598049066,0.7072213,31206.0,31205.0,0.2197809]
[1609598049367,0.1709,31207.0,31205.0,0.2197809]
[1609598049566,0.7072213,31206.0,31205.0,0.2197809]
[1609598049766,0.7072213,31206.0,31205.0,9.08573094]
[1609598049966,0.7072213,31206.0,31205.0,9.1250731]
[1609598050567,0.7072213,31214.0,31205.0,9.1250731]
[1609598051068,0.7072213,31214.0,31206.0,0.0393416]
[1609598052368,0.7072213,31214.0,31213.0,0.18043158]
[1609598052669,0.7072213,31214.0,31213.0,0.18078106]
[1609598054574,0.7072213,31214.0,31213.0,4.24647356]
[1609598055974,0.51205967,31214.0,31213.0,4.24647356]
[1609598056175,0.51205967,31214.0,31213.0,4.28546468]
[1609598057977,0.51010807,31214.0,31213.0,6.61095665]
[1609598073396,0.31494895,31214.0,31213.0,4.28546468]
[1609598073895,0.2916,31215.0,31213.0,4.28546468]
[1609598074095,0.31494895,31214.0,31213.0,4.28546468]
[1609598074495,0.31494895,31214.0,31213.0,4.24612408]
[1609598074695,0.02221986,31214.0,31213.0,6.57588478]
[1609598075094,0.2916,31215.0,31213.0,6.57588478]
[1609598075095,0.31381986,31215.0,31213.0,6.57588478]
[1609598075396,0.31381986,31215.0,31214.0,0.0393365]
[1609598076195,0.31186855,31215.0,31214.0,0.0393365]
[1609598076396,0.28964869,31215.0,31214.0,0.0393365]
[1609598076796,0.16244,31216.0,31214.0,0.0393365]
[1609598076997,0.16244,31216.0,31214.0,0.1119631]
[1609598077197,0.03026872,31224.0,31214.0,0.1119631]
[1609598077398,0.00804886,31224.0,31214.0,6.39210914]
[1609598077797,0.00804886,31224.0,31215.0,0.11195538]
[1609598078498,0.00804886,31224.0,31223.0,0.18043158]
[1609598078897,0.00804886,31224.0,31223.0,0.21975792]
[1609598079396,0.00804886,31224.0,31223.0,0.21975824]
[1609598080097,0.00804886,31224.0,31223.0,5.44595824]
[1609598080701,0.00804886,31224.0,31223.0,7.34782397]
[1609598082002,0.10136854,31225.0,31223.0,9.44377228]
[1609598082401,0.1235884,31225.0,31224.0,0.03947579]
[1609598083402,0.10136854,31225.0,31224.0,0.03947579]
[1609598085708,0.10136854,31225.0,31224.0,4.0396751]
[1609598091014,0.13491,31226.0,31224.0,6.32553447]
[1609598091414,0.02221986,31235.0,31225.0,0.03947086]
[1609598092115,0.02221986,31235.0,31225.0,0.00035117]
[1609598092414,1.16236,31234.0,31226.0,0.00035123]
[1609598092615,0.02221986,31233.0,31230.0,0.18043158]
[1609598092815,0.98948808,31234.0,31230.0,0.18043158]
[1609598093015,0.98948808,31234.0,31231.0,0.00035123]
[1609598093215,0.16236,31234.0,31231.0,0.00035123]
[1609598093415,0.16236,31234.0,31224.0,5.91269026]
[1609598093618,0.16236,31234.0,31222.0,2.09100654]
[1609598093815,0.16236,31234.0,31225.0,0.00035126]
[1609598094015,0.16236,31234.0,31223.0,0.00035126]
[1609598094215,0.16236,31234.0,31226.0,0.00035126]
[1609598094415,1.0,31233.0,31226.0,0.00035126]
[1609598094614,1.0,31233.0,31227.0,0.18043158]
[1609598094816,1.0,31233.0,31227.0,0.18078284]
[1609598095016,1.0,31233.0,31228.0,0.00035126]
[1609598096017,0.99804893,31233.0,31228.0,0.00035126]
[1609598096618,0.18043158,31229.0,31228.0,0.00035126]
[1609598096816,1.17848051,31229.0,31228.0,0.00035126]
[1609598099019,1.17848051,31229.0,31221.0,0.00035126]
[1609598099419,1.17848051,31229.0,31228.0,0.00035126]
[1609598099619,1.17848051,31229.0,31222.0,0.00035126]
[1609598099819,1.17848051,31229.0,31228.0,0.00035126]
[1609598100219,1.17848051,31229.0,31223.0,0.00035126]
[1609598100420,1.17848051,31229.0,31221.0,0.00035126]
[1609598100621,0.99804893,31229.0,31224.0,0.00035126]
[1609598100821,0.99804893,31229.0,31222.0,0.00035126]
[1609598101123,0.99804893,31229.0,31225.0,0.00035126]
[1609598101523,0.99804893,31229.0,31223.0,0.00035126]
[1609598101725,0.99804893,31229.0,31226.0,0.00035129]
[1609598101926,0.99804893,31229.0,31221.0,0.03948138]
[1609598102225,0.99804893,31229.0,31227.0,0.00035127]
[1609598102425,0.99804893,31229.0,31222.0,0.00035127]
[1609598102626,0.99804893,31229.0,31228.0,0.0189]
[1609598102826,0.99804893,31229.0,31228.0,0.01925131]
[1609598104629,1.17848051,31229.0,31228.0,0.01925131]
[1609598104830,1.74298051,31229.0,31222.0,0.4008783]
[1609598105029,1.17848051,31229.0,31222.0,0.4008783]
[1609598105230,2.17848051,31229.0,31223.0,0.00035132]
[1609598105634,4.9851,31224.0,31216.0,0.03948965]
[1609598105837,0.99804893,31223.0,31216.0,0.03948965]
[1609598106236,0.99804893,31223.0,31216.0,0.00035134]
[1609598106437,0.99804893,31223.0,31215.0,2.11002195]
[1609598106438,0.99804893,31223.0,31217.0,0.0003514]
[1609598106638,0.18043158,31218.0,31217.0,0.0003514]
[1609598106840,1.17848051,31218.0,31217.0,0.0003514]
[1609598107039,1.17848051,31218.0,31206.0,5.2376]
[1609598107040,1.17652855,31218.0,31216.0,0.0003514]
[1609598107239,2.17652855,31218.0,31217.0,0.0003514]
[1609598107939,2.17652855,31218.0,31214.0,0.03949304]
[1609598108139,2.17652855,31218.0,31217.0,0.00035137]
[1609598108339,2.17652855,31218.0,31215.0,0.00035137]
[1609598108539,2.17652855,31218.0,31217.0,0.0003514]
[1609598108944,2.85902855,31218.0,31211.0,2.11841043]
[1609598109140,2.85902855,31218.0,31217.0,0.0003514]
[1609598109342,2.85902855,31218.0,31212.0,0.0003514]
[1609598109540,7.85902855,31218.0,31212.0,0.0003514]
[1609598110642,0.18043158,31213.0,31212.0,0.0003514]
[1609598110842,1.17848051,31213.0,31212.0,0.0003514]
[1609598111042,1.81645051,31213.0,31208.0,0.00035147]
[1609598111243,1.81645051,31213.0,31212.0,0.00035147]
[1609598111443,1.81645051,31213.0,31209.0,0.00035147]
[1609598111744,1.81645051,31213.0,31208.0,0.00035147]
[1609598112547,1.81645051,31213.0,31204.0,0.00035149]
[1609598112747,0.18043158,31205.0,31204.0,0.00035149]
[1609598112947,1.17848051,31205.0,31204.0,0.00035149]
[1609598113348,1.17848051,31205.0,31201.0,0.00035151]
[1609598113648,1.17848051,31205.0,31197.0,0.00035151]
[1609598113849,1.17848051,31205.0,31202.0,0.00035151]
[1609598114249,1.17848051,31205.0,31197.0,0.03950851]
[1609598114451,1.17848051,31205.0,31203.0,0.00035151]
[1609598114649,1.17848051,31205.0,31198.0,0.00035151]
[1609598114950,1.17848051,31205.0,31204.0,0.00035151]
[1609598115249,1.0,31200.0,31199.0,0.00035151]
[1609598115449,1.99804893,31200.0,31193.0,2.11797051]
[1609598115850,1.99804893,31200.0,31197.0,0.00035149]
[1609598116050,1.99804893,31200.0,31197.0,1.92507466]
[1609598116249,1.99804893,31200.0,31198.0,0.00035149]
[1609598116449,5.3659,31199.0,31198.0,0.00035149]
[1609598116649,6.36394893,31199.0,31198.0,0.00035149]
[1609598116857,6.34908253,31199.0,31198.0,1.92474108]
[1609598117451,6.34908253,31199.0,31198.0,0.00035149]
[1609598117452,1.17848051,31199.0,31198.0,0.00035149]
[1609598117853,1.17848051,31199.0,31194.0,0.00035166]
[1609598118752,0.18043158,31195.0,31194.0,0.00035166]
[1609598118954,1.17848051,31195.0,31191.0,0.00035162]
[1609598119153,1.29507051,31195.0,31191.0,0.00035162]
[1609598119353,1.29507051,31195.0,31194.0,0.00035162]
[1609598119554,1.84497051,31195.0,31192.0,0.00035162]
[1609598119754,1.29507051,31195.0,31194.0,0.00035162]
[1609598119953,1.29507051,31195.0,31193.0,0.00035162]
[1609598120153,4.8007,31194.0,31193.0,0.00035162]
[1609598120357,5.79874893,31194.0,31191.0,0.00035162]
[1609598120555,5.79874893,31194.0,31190.0,0.03]
[1609598120757,0.18043158,31191.0,31190.0,0.03]
[1609598120955,1.17848051,31191.0,31190.0,0.03]
[1609598121155,1.17848051,31191.0,31190.0,0.03035163]
[1609598125660,1.17848051,31191.0,31190.0,0.03]
[1609598126261,1.17652727,31191.0,31190.0,0.03]
[1609598127161,1.17652727,31191.0,31190.0,0.0303516]
[1609598127961,1.17652727,31191.0,31190.0,0.03]
[1609598129063,1.17652727,31191.0,31190.0,0.03035162]
[1609598134369,0.17847834,31191.0,31190.0,0.03035162]
[1609598134771,0.17847834,31191.0,31190.0,0.2107832]
[1609598136169,0.17847834,31191.0,31190.0,0.24994848]
[1609598137870,0.11659,31195.0,31190.0,0.24994848]
[1609598138071,0.99804893,31198.0,31190.0,0.24994848]
[1609598138270,0.99804893,31198.0,31191.0,0.03951202]
[1609598138769,0.99804893,31198.0,31197.0,0.18043158]
[1609598139172,0.99804893,31198.0,31197.0,0.18078311]
[1609598142774,1.17848051,31198.0,31197.0,0.18078311]
[1609598144679,1.17652767,31198.0,31197.0,0.18078311]
[1609598145475,1.17652767,31198.0,31197.0,0.00035153]
[1609598145777,1.17652767,31198.0,31193.0,0.0003501]
[1609598146177,1.17652767,31198.0,31197.0,0.0003501]
[1609598146378,1.17652767,31198.0,31194.0,0.0003501]
[1609598146578,1.17652767,31198.0,31197.0,0.0003501]
[1609598146878,1.17652767,31198.0,31195.0,0.0003501]
[1609598147078,1.17652767,31198.0,31197.0,0.0003501]
[1609598147479,1.17652767,31198.0,31193.0,0.0003501]
[1609598147678,1.17652767,31198.0,31197.0,0.0003501]
[1609598147879,1.17652767,31198.0,31194.0,0.0003501]
[1609598148180,1.17652767,31198.0,31197.0,0.00035012]
[1609598148579,1.17652767,31198.0,31195.0,0.00035012]
[1609598148779,1.17652767,31198.0,31197.0,0.0003501]
[1609598148980,1.17652767,31198.0,31193.0,0.00035012]
[1609598149279,1.17652767,31198.0,31197.0,0.00035012]
[1609598149479,1.17652767,31198.0,31194.0,0.00035012]
[1609598149880,1.17652767,31198.0,31197.0,0.00035012]
[1609598150081,1.17652767,31198.0,31195.0,0.00035012]
[1609598150280,1.17652767,31198.0,31197.0,0.00035012]
[1609598150579,1.17652767,31198.0,31196.0,0.00035012]
[1609598150880,1.17652767,31198.0,31197.0,0.0003501]
[1609598151481,1.17652767,31198.0,31194.0,0.0003501]
[1609598151781,0.18043158,31198.0,31197.0,0.0003501]
[1609598151981,0.18043158,31198.0,31197.0,5.2579]
[1609598152181,0.2705,31199.0,31197.0,5.2582501]
[1609598152683,0.2705,31199.0,31198.0,0.00035007]
[1609598152883,0.2705,31199.0,31198.0,0.18078165]
[1609598154086,0.07527181,31199.0,31198.0,0.21993419]
[1609598157895,0.0733195,31199.0,31198.0,2.10523231]
[1609598158593,0.0633195,31199.0,31198.0,2.10523231]
[1609598162300,0.86418069,31202.0,31198.0,4.19572032]
[1609598162800,0.86418069,31202.0,31199.0,0.03950176]
[1609598163500,0.18043158,31203.0,31199.0,0.03950176]
[1609598164099,0.18043158,31203.0,31199.0,0.11242239]
[1609598164699,0.18043158,31203.0,31199.0,5.08322239]
[1609598165101,0.18043158,31203.0,31202.0,0.18043158]
[1609598165501,0.18043158,31203.0,31202.0,0.21992828]
[1609598169905,0.17847949,31203.0,31202.0,0.21992828]
[1609598175612,0.10158458,31204.0,31202.0,2.11567669]
[1609598175815,1.13738069,31212.0,31202.0,2.11567669]
[1609598176212,1.13738069,31212.0,31203.0,0.03950129]
[1609598177516,1.13738069,31212.0,31209.0,0.03950194]
[1609598177713,1.13738069,31212.0,31204.0,0.03950211]
[1609598177913,1.13738069,31212.0,31210.0,0.00035001]
[1609598178215,1.13738069,31212.0,31202.0,0.03950308]
[1609598178614,1.13738069,31212.0,31211.0,0.00035005]
[1609598178814,1.13738069,31212.0,31203.0,0.00035005]
[1609598179018,1.13738069,31212.0,31211.0,0.00035005]
[1609598179416,1.13738069,31212.0,31204.0,0.00035005]
[1609598179617,1.13738069,31212.0,31211.0,0.00035005]
[1609598179818,1.13738069,31212.0,31205.0,0.00035005]
[1609598180017,1.13738069,31212.0,31211.0,0.00035005]
[1609598180318,1.13738069,31212.0,31206.0,0.00035005]
[1609598180618,1.13738069,31212.0,31211.0,0.00035005]
[1609598180818,1.13738069,31212.0,31207.0,0.00035005]
[1609598181120,0.18043158,31208.0,31204.0,0.03915525]
[1609598181319,0.86222817,31207.0,31204.0,0.03915525]
[1609598181519,0.86222817,31207.0,31206.0,0.03915518]
[1609598181719,0.86222817,31207.0,31205.0,0.03950514]
[1609598181919,0.86222817,31207.0,31206.0,0.03950443]
[1609598182419,0.86222817,31207.0,31199.0,0.03950421]
[1609598183122,0.18043158,31200.0,31199.0,0.03950421]
[1609598186127,0.18043158,31200.0,31199.0,0.03915417]
[1609598186328,0.18043158,31200.0,31199.0,0.03950421]
[1609598186527,0.18043158,31200.0,31199.0,0.03985425]
[1609598190032,0.18043158,31200.0,31199.0,0.11278055]
[1609598191434,0.86222817,31209.0,31199.0,0.11278055]
[1609598191834,0.86222817,31209.0,31200.0,0.00035002]
[1609598192034,0.18043158,31201.0,31200.0,0.00035002]
[1609598192633,0.18043158,31201.0,31200.0,0.03950195]
[1609598192835,0.17847912,31201.0,31200.0,0.03950195]
[1609598193035,1.04070729,31201.0,31200.0,0.03950195]
[1609598195039,1.04070729,31201.0,31200.0,0.00035002]
[1609598195239,1.04070729,31201.0,31200.0,0.03950393]
[1609598195539,1.04070729,31201.0,31200.0,0.00035002]
[1609598195839,1.04070729,31201.0,31200.0,0.03950409]
[1609598196040,1.04070729,31201.0,31200.0,0.00035002]
[1609598196342,1.04070729,31201.0,31200.0,0.03950477]
[1609598196543,1.04070729,31201.0,31200.0,0.00035002]
[1609598197245,0.17847912,31201.0,31200.0,0.00035002]
[1609598197645,0.17847912,31201.0,31200.0,0.03950466]
[1609598198043,1.04070729,31201.0,31200.0,0.03950466]
[1609598199245,0.17847912,31201.0,31200.0,0.03950466]
[1609598199445,1.04070729,31201.0,31200.0,0.03950466]
[1609598202144,1.04070729,31201.0,31200.0,0.1125755]
[1609598203247,1.04070729,31201.0,31200.0,0.03950466]
[1609598204249,1.04070729,31201.0,31200.0,0.11258074]
[1609598205348,1.04070729,31201.0,31200.0,0.03950466]
[1609598207050,1.04070729,31201.0,31200.0,0.11257996]
[1609598207252,0.17847912,31201.0,31200.0,0.03950466]
[1609598207453,0.19547912,31201.0,31200.0,0.03950466]
[1609598207751,0.19547912,31201.0,31200.0,0.11257688]
[1609598207951,1.05770729,31201.0,31200.0,0.11257688]
[1609598208751,1.05770729,31201.0,31200.0,0.03950466]
[1609598208952,0.19547912,31201.0,31200.0,0.03950466]
[1609598209152,1.05770729,31201.0,31200.0,0.11257883]
[1609598211657,1.05770729,31201.0,31200.0,0.03950466]
[1609598212961,1.05770729,31201.0,31200.0,0.11257575]
[1609598213159,1.0557548,31201.0,31200.0,0.11257575]
[1609598214060,1.0557548,31201.0,31200.0,0.03950466]
[1609598214662,1.0557548,31201.0,31200.0,1.94085744]
[1609598215063,0.19352663,31201.0,31200.0,1.94085744]
[1609598215466,1.0557548,31201.0,31200.0,1.94085744]
[1609598218570,1.0557548,31201.0,31200.0,2.01392945]
[1609598219071,1.0557548,31201.0,31200.0,1.94085744]
[1609598220174,0.19352663,31201.0,31200.0,1.94085744]
[1609598220873,1.0557548,31201.0,31200.0,1.94085744]
[1609598221776,0.19352663,31201.0,31200.0,1.94085744]
[1609598224080,0.19352663,31201.0,31200.0,2.01392683]
[1609598224680,1.0557548,31201.0,31200.0,2.01392683]
[1609598225783,0.19352663,31201.0,31200.0,2.01392683]
[1609598225983,1.0557548,31201.0,31200.0,2.01392683]
[1609598226184,1.05380233,31201.0,31200.0,2.01392683]
[1609598226985,0.19157416,31201.0,31200.0,2.01392683]
[1609598227284,0.17457416,31201.0,31200.0,2.01392683]
[1609598229889,1.03680233,31201.0,31200.0,2.01392683]
[1609598231193,1.03680233,31201.0,31200.0,4.10390075]
[1609598232195,1.03680233,31201.0,31200.0,2.01392683]
[1609598234598,0.17457416,31201.0,31200.0,2.01392683]
[1609598236202,0.17262171,31201.0,31200.0,4.10408019]
[1609598241011,0.17262171,31201.0,31200.0,4.81108019]
[1609598241613,1.13542817,31212.0,31200.0,4.81108019]
[1609598242124,0.2732,31212.0,31201.0,0.0395016]
[1609598242525,0.45363158,31212.0,31211.0,0.18043158]
[1609598242913,0.18043158,31212.0,31211.0,5.14062684]
[1609598243125,0.18043158,31212.0,31211.0,9.13191669]
[1609598245530,0.18043158,31212.0,31211.0,6.67617379]
[1609598245717,1.0,31223.0,31211.0,8.9515188]
[1609598245917,1.0,31223.0,31212.0,0.03949193]
[1609598246618,0.99804824,31223.0,31217.0,0.18043158]
[1609598246919,0.99804824,31223.0,31218.0,0.00035015]
[1609598247521,1.14480824,31224.0,31218.0,0.0394907]
[1609598248321,1.14480824,31224.0,31218.0,0.00035015]
[1609598248522,1.14480824,31224.0,31219.0,0.00035015]